bitfinex/quotes_ETHUSD_20240926
["timestamp","ask_amount","ask_price","bid_price","bid_amount"]
[1727352944433,3.79651,2634.0,2633.6,0.07319518]
[1727352945170,3.79651,2634.0,2633.6,3.87024518]
[1727352945493,3.0,2634.6,2633.7,2.56365328]
[1727352945494,3.79624,2634.2,2633.7,2.56365328]
[1727352945739,3.79636,2634.1,2633.7,6.36056328]
[1727352945889,3.79636,2634.1,2633.8,0.07302232]
[1727352946422,3.79636,2634.1,2633.7,4.61441]
[1727352946627,4.254324,2634.2,2633.9,0.0729359]
[1727352946805,4.254324,2634.2,2633.8,0.07302232]
[1727352947004,3.79639,2634.1,2633.8,0.07302232]
[1727352947205,3.79639,2634.1,2633.7,4.61442]
[1727352947490,3.79639,2634.1,2633.8,0.07302232]
[1727352947694,4.6799214,2634.1,2633.8,0.07302232]
[1727352947927,3.79656,2634.0,2633.6,3.79705]
[1727352948132,3.79656,2634.0,2633.9,0.07305924]
[1727352948308,4.64420814,2634.0,2633.9,0.07305924]
[1727352948621,4.64420814,2634.0,2633.5,4.55559]
[1727352948622,5.43690814,2634.0,2633.5,4.55559]
[1727352948823,4.58926,2634.0,2633.9,0.07305924]
[1727352949038,4.58926,2634.0,2633.5,4.55559]
[1727352949241,4.58926,2634.0,2633.9,0.07305924]
[1727352949451,4.58926,2634.0,2633.5,4.55559]
[1727352949659,4.58926,2634.0,2633.9,0.07305924]
[1727352949951,4.58926,2634.0,2633.6,3.797]
[1727352949952,4.635125,2634.0,2633.6,3.797]
[1727352950128,3.79656,2634.0,2633.9,0.07305924]
[1727352950441,3.79656,2634.0,2633.6,3.797]
[1727352950641,3.79656,2634.0,2633.9,0.07305924]
[1727352950805,4.255486,2634.0,2633.5,4.55562]
[1727352951011,3.79656,2634.0,2633.9,0.07305924]
[1727352951642,6.36311328,2634.0,2633.2,0.7915]
[1727352951845,3.79639,2634.1,2633.0,0.7915]
[1727352951846,7.59491,2633.4,2633.0,0.7915]
[1727352952051,3.79743,2633.4,2633.3,0.07132576]
[1727352952220,3.79743,2633.4,2632.9,3.79807]
[1727352952549,4.61764,2633.5,2633.3,0.06907788]
[1727352952709,4.61764,2633.5,2633.1,3.79777]
[1727352952908,4.61764,2633.5,2633.4,0.06668949]
[1727352953151,4.61793,2633.7,2633.2,4.62727]
[1727352953305,4.61793,2633.7,2633.4,0.06668949]
[1727352953510,8.41496,2633.7,2633.3,0.06677594]
[1727352953736,8.41496,2633.7,2633.5,0.06660304]
[1727352953934,8.41496,2633.7,2633.4,0.06668949]
[1727352954109,5.56102103,2633.7,2633.6,0.0665166]
[1727352954323,4.61793,2633.7,2633.5,0.06660304]
[1727352954550,4.61793,2633.7,2633.6,0.0665166]
[1727352954911,4.61793,2633.7,2633.2,4.62727]
[1727352955111,4.61793,2633.7,2633.6,0.0665166]
[1727352955307,5.56099903,2633.7,2633.6,0.0665166]
[1727352955546,3.79715,2633.6,2633.2,0.8297]
[1727352955946,7.59433,2633.6,2633.1,3.79772]
[1727352956251,3.79727,2633.5,2633.0,4.57454]
[1727352956553,3.79743,2633.4,2633.0,4.57454]
[1727352957947,3.79752,2633.3,2633.0,0.7766]
[1727352958165,3.79752,2633.3,2633.1,0.06719519]
[1727352958356,4.62962,2633.3,2633.1,0.06719519]
[1727352958654,4.62962,2633.3,2632.8,4.61283]
[1727352958870,4.62962,2633.3,2632.5,10.44]
[1727352958871,3.79797,2633.0,2632.6,0.8147]
[1727352959028,3.79797,2633.0,2632.9,0.06736814]
[1727352959349,4.60038,2632.9,2632.4,4.58254]
[1727352959515,4.60038,2632.9,2632.5,3.79866]
[1727352959710,4.60038,2632.9,2632.4,5.420738]
[1727352959711,3.79825,2632.8,2632.4,5.420738]
[1727352959927,3.79825,2632.8,2632.4,4.5826]
[1727352960129,3.79825,2632.8,2632.2,5.54512328]
[1727352960130,3.79841,2632.7,2632.3,3.79895]
[1727352960765,3.79841,2632.7,2632.1,3.79922]
[1727352960766,3.79868,2632.5,2632.1,3.79922]
[1727352960920,3.79868,2632.5,2632.0,11.99332]
[1727352960921,4.60818,2632.5,2632.0,11.99332]
[1727352961424,4.60818,2632.5,2631.8,0.7924425]
[1727352961425,3.79897,2632.3,2631.8,0.7924425]
[1727352961635,3.79897,2632.3,2631.8,4.5920525]
[1727352962165,3.79913,2632.2,2631.8,3.8380525]
[1727352962453,0.8095,2632.5,2632.1,0.754]
[1727352962657,0.8095,2632.5,2632.1,4.55324]
[1727352963751,0.8095,2632.5,2632.2,3.79906]
[1727352964130,0.8095,2632.5,2632.1,4.5532]
[1727352967474,0.8095,2632.5,2632.1,4.55315]
[1727352968329,0.8095,2632.5,2632.1,5.388408]
[1727352968769,0.8095,2632.5,2632.2,3.79897]
[1727352968941,0.7906,2632.8,2632.2,3.86686636]
[1727352969129,4.58864,2633.0,2632.5,3.7986]
[1727352969736,8.38669,2633.0,2632.5,3.7986]
[1727352969960,4.58864,2633.0,2632.5,3.7986]
[1727352970170,4.58864,2633.0,2632.5,7.59716]
[1727352970376,8.38669,2633.0,2632.6,0.76731265]
[1727352970538,4.58864,2633.0,2632.6,0.76731265]
[1727352970728,4.58864,2633.0,2632.5,3.79856]
[1727352970729,3.79813,2632.9,2632.5,3.79856]
[1727352970935,3.79813,2632.9,2632.3,5.15686244]
[1727352971136,3.79813,2632.9,2632.4,3.7988]
[1727352971480,3.79813,2632.9,2632.4,5.05997501]
[1727352973285,0.7906,2633.0,2632.5,0.06888732]
[1727352973442,0.7906,2633.0,2632.7,3.79836]
[1727352973937,0.7906,2633.0,2632.8,0.06862783]
[1727352974374,0.7906,2633.0,2632.6,3.79838]
[1727352974545,0.7906,2633.0,2632.9,0.06854134]
[1727352975082,0.7906,2633.0,2632.6,4.55730701]
[1727352975261,0.7906,2633.0,2632.7,0.06871432]
[1727352976079,0.7906,2633.0,2632.7,3.86709432]
[1727352976839,4.58857,2633.0,2632.7,0.06871432]
[1727352977043,4.58857,2633.0,2632.6,3.79852]
[1727352977346,4.58857,2633.0,2632.7,0.06871432]
[1727352978065,4.58857,2633.0,2632.5,3.79865]
[1727352978259,3.79831,2632.8,2632.6,0.06854358]
[1727352978462,3.79831,2632.8,2632.4,3.7988]
[1727352978890,4.58857,2633.0,2632.5,0.06856043]
[1727352979077,3.7981,2632.9,2632.5,0.06856043]
[1727352979778,0.7906,2633.0,2632.5,0.06856043]
[1727352979979,4.58855,2633.0,2632.6,3.79851]
[1727352980295,4.58855,2633.0,2632.7,0.06838207]
[1727352981493,4.58855,2633.0,2632.7,3.86668207]
[1727352981494,0.7906,2633.0,2632.7,3.86668207]
[1727352981656,0.7906,2633.0,2632.7,4.68759457]
[1727352982054,3.79749,2633.4,2632.9,3.79802]
[1727352982055,3.79754,2633.3,2632.9,3.79802]
[1727352982306,3.79754,2633.3,2633.0,0.06812262]
[1727352982983,7.59517,2633.3,2633.0,0.06812262]
[1727352983194,3.79754,2633.3,2633.0,0.06812262]
[1727352983365,3.79767,2633.2,2632.8,3.79822]
[1727352984063,3.79767,2633.2,2632.9,0.06820909]
[1727352985158,3.79768,2633.2,2632.9,0.06820909]
[1727352985604,3.79768,2633.2,2632.7,4.59326]
[1727352985791,3.79768,2633.2,2633.0,0.06812262]
[1727352986104,3.79768,2633.2,2633.1,0.06803614]
[1727352986399,3.79768,2633.2,2632.8,3.79822]
[1727352986573,3.79768,2633.2,2633.1,0.06803614]
[1727352986773,3.79768,2633.2,2632.8,3.79822]
[1727352986969,3.79768,2633.2,2633.1,0.06803614]
[1727352987175,3.79768,2633.2,2632.8,3.79822]
[1727352987382,3.79768,2633.2,2633.1,0.06803614]
[1727352987557,3.79768,2633.2,2632.8,3.79822]
[1727352987775,3.79768,2633.2,2633.1,0.06803614]
[1727352988293,3.79768,2633.2,2632.8,3.79822]
[1727352988598,3.79768,2633.2,2632.9,0.06820909]
[1727352989604,3.79754,2633.3,2632.9,0.06820909]
[1727352989802,0.8047,2633.4,2632.9,0.06820909]
[1727352990102,4.60207,2633.4,2633.0,0.06801545]
[1727352990266,4.60207,2633.4,2632.8,4.72011225]
[1727352990605,4.60207,2633.4,2632.9,0.06810193]
[1727352991066,4.60207,2633.4,2633.0,3.79783]
[1727352991270,4.60207,2633.4,2633.1,0.06792898]
[1727352991798,0.8047,2633.4,2633.1,0.06792898]
[1727352992008,4.62135,2633.7,2633.3,3.79748]
[1727352992163,4.62135,2633.7,2633.2,3.87348481]
[1727352992366,4.59226,2633.9,2633.4,3.86482031]
[1727352992584,4.59226,2633.9,2633.4,3.79729]
[1727352992875,3.79696,2633.7,2633.5,0.06744386]
[1727352993078,3.79696,2633.7,2633.2,7.59514]
[1727352993310,0.7854,2633.5,2633.3,0.06747749]
[1727352993509,0.7854,2633.5,2633.2,3.79759]
[1727352993810,0.7854,2633.5,2633.3,0.06747749]
[1727352994098,0.7854,2633.5,2633.2,7.59515]
[1727352994300,0.7854,2633.5,2633.1,0.7943]
[1727352994505,0.7854,2633.5,2633.2,0.06756395]
[1727352994810,0.7854,2633.5,2633.0,3.79785]
[1727352994811,3.79743,2633.4,2633.0,3.79785]
[1727352995010,1.243635,2633.5,2633.0,3.79785]
[1727352995011,4.58269,2633.5,2633.3,0.06747749]
[1727352995306,0.7854,2633.5,2633.4,0.06739104]
[1727352995669,0.7854,2633.5,2633.2,3.79763]
[1727352995868,0.7854,2633.5,2633.4,0.06739104]
[1727352996269,0.7854,2633.5,2633.1,3.79778]
[1727352996490,0.7854,2633.5,2633.2,0.06756395]
[1727352997283,0.7854,2633.5,2633.2,3.86521395]
[1727352998083,0.7854,2633.5,2633.2,0.06756395]
[1727352999712,3.79696,2633.7,2633.3,3.79743]
[1727352999713,0.8166,2633.7,2633.3,3.79743]
[1727353000014,0.8166,2633.7,2633.4,0.06739104]
[1727353000308,4.61356,2633.7,2633.4,0.06739104]
[1727353001411,0.8166,2633.7,2633.4,0.06739104]
[1727353002508,3.79687,2633.8,2633.4,0.06739104]
[1727353003723,3.79694,2633.7,2633.4,0.06739104]
[1727353004289,3.79687,2633.8,2633.4,0.06739104]
[1727353004480,3.7971,2633.6,2633.4,0.06739104]
[1727353004723,0.7544,2633.5,2633.2,3.79764]
[1727353006919,0.7544,2633.5,2633.2,3.79758]
[1727353007435,0.7544,2633.5,2633.1,4.62409]
[1727353007585,0.7544,2633.5,2633.2,3.79763]
[1727353007785,0.7544,2633.5,2633.1,3.79774]
[1727353008107,0.7544,2633.5,2632.9,2.00592901]
[1727353008108,3.79747,2633.4,2632.9,2.00592901]
[1727353008428,3.79747,2633.4,2633.0,3.79793]
[1727353009936,4.55165,2633.5,2633.0,3.79793]
[1727353010637,3.79772,2633.2,2632.8,3.79817]
[1727353010818,3.79752,2633.3,2632.9,3.79805]
[1727353016629,0.7629,2633.4,2632.9,3.79805]
[1727353016630,4.56028,2633.4,2632.9,3.79805]
[1727353018225,4.56028,2633.4,2633.0,0.06751194]
[1727353018549,5.4795187,2633.4,2633.0,0.06751194]
[1727353019143,3.79758,2633.3,2633.0,0.06751194]
[1727353019349,3.79767,2633.2,2632.8,3.79821]
[1727353019544,3.79767,2633.2,2633.1,0.06742547]
[1727353019829,5.49658887,2633.2,2632.8,3.79821]
[1727353020335,5.49658887,2633.2,2632.9,0.06759842]
[1727353020664,1.69891887,2633.2,2632.9,3.86567842]
[1727353020867,1.69891887,2633.2,2632.9,7.66369842]
[1727353021051,3.79739,2633.4,2632.9,3.86561842]
[1727353021254,4.59559,2633.4,2633.0,3.79788]
[1727353021458,0.7982,2633.4,2633.0,3.79788]
[1727353021763,4.59558,2633.4,2633.1,0.06742547]
[1727353021928,5.434858,2633.4,2633.1,0.06742547]
[1727353022461,0.7982,2633.4,2633.1,3.86520547]
[1727353024471,0.7982,2633.4,2633.1,0.06742547]
[1727353024829,4.59564,2633.4,2633.1,0.06742547]
[1727353025158,4.59564,2633.4,2632.9,4.61826]
[1727353025470,5.43493,2633.4,2633.2,0.067339]
[1727353025630,5.43493,2633.4,2633.0,3.79792]
[1727353025831,5.43493,2633.4,2633.3,0.06725254]
[1727353026031,5.43493,2633.4,2633.0,3.79792]
[1727353026276,5.43493,2633.4,2633.3,0.06725254]
[1727353026566,5.43493,2633.4,2633.0,3.79792]
[1727353026771,5.43493,2633.4,2633.3,0.06725254]
[1727353026772,4.59564,2633.4,2633.3,0.06725254]
[1727353027277,4.59564,2633.4,2633.0,3.79792]
[1727353027636,8.39314,2633.4,2633.1,0.06742547]
[1727353027838,8.39314,2633.4,2632.9,4.61818]
[1727353028150,4.59564,2633.4,2632.9,4.61818]
[1727353028347,4.59564,2633.4,2632.9,8.41619]
[1727353028549,4.59564,2633.4,2633.0,0.06751194]
[1727353028850,8.39311,2633.4,2633.0,0.06751194]
[1727353029047,4.5912,2633.1,2633.0,0.06751194]
[1727353029577,3.79825,2632.8,2632.3,3.79885]
[1727353029882,3.79825,2632.8,2632.4,3.79879]
[1727353030184,3.79833,2632.8,2632.4,1.75725824]
[1727353030351,3.79844,2632.7,2632.2,4.5855]
[1727353030962,3.79857,2632.6,2632.2,4.5855]
[1727353031788,7.59719,2632.6,2632.2,0.7865]
[1727353031945,3.79857,2632.6,2632.2,0.7865]
[1727353032147,7.59718,2632.6,2632.2,0.7865]
[1727353032375,3.79873,2632.5,2632.1,3.79922]
[1727353033177,3.79857,2632.6,2632.2,3.79909]
[1727353033481,0.8216,2632.7,2632.2,3.79909]
[1727353033482,0.8216,2632.7,2632.2,3.8653113]
[1727353033643,4.62002,2632.7,2632.2,7.6643213]
[1727353033846,0.8216,2632.7,2632.3,0.7607]
[1727353034099,4.62004,2632.7,2632.3,0.06613477]
[1727353034589,4.62004,2632.7,2632.2,3.79901]
[1727353034751,4.62004,2632.7,2632.4,0.06604825]
[1727353035087,4.62004,2632.7,2632.2,7.59802]
[1727353035259,3.79852,2632.6,2632.5,0.06596174]
[1727353035445,3.79852,2632.6,2632.2,3.7991]
[1727353035641,3.79852,2632.6,2632.5,0.06596174]
[1727353036045,3.79852,2632.6,2632.2,3.7991]
[1727353036245,3.79852,2632.6,2632.5,0.06596174]
[1727353036446,3.79852,2632.6,2632.2,3.79904]
[1727353036695,3.79852,2632.6,2632.5,0.06596174]
[1727353036979,3.79852,2632.6,2632.2,3.79904]
[1727353037187,3.79852,2632.6,2632.5,0.06596174]
[1727353037548,4.61998,2632.7,2632.2,3.79903]
[1727353037791,4.61998,2632.7,2632.5,0.06596174]
[1727353037949,4.61998,2632.7,2632.3,3.86506477]
[1727353038791,0.8216,2632.7,2632.3,3.86506477]
[1727353039107,4.61998,2632.7,2632.3,3.86506477]
[1727353040473,0.8216,2632.7,2632.3,3.86506477]
[1727353040870,4.62001,2632.7,2632.3,3.86506477]
[1727353041293,4.62001,2632.7,2632.3,0.06613477]
[1727353041692,4.62001,2632.7,2632.2,3.79909]
[1727353042025,4.62001,2632.7,2632.1,4.55984]
[1727353042026,3.7986,2632.6,2632.3,0.06646697]
[1727353042306,3.79867,2632.5,2632.1,4.55984]
[1727353042598,3.79867,2632.5,2632.1,8.35901]
[1727353042976,3.79867,2632.5,2632.2,0.0665535]
[1727353043415,4.62001,2632.7,2632.2,0.0665535]
[1727353043622,8.4185,2632.7,2632.2,3.8655835]
[1727353043915,4.62001,2632.7,2632.2,3.8655835]
[1727353044219,3.79853,2632.6,2632.2,3.8655835]
[1727353045081,3.7989,2632.4,2632.2,0.0665535]
[1727353045318,0.8133,2632.5,2632.2,0.0665535]
[1727353045616,3.7994,2632.0,2631.8,0.0384425]
[1727353045779,4.61283,2631.9,2631.8,0.0384425]
[1727353048012,4.61283,2631.9,2631.8,0.10347718]
[1727353050131,3.79928,2632.1,2631.8,0.10347718]
[1727353051657,0.8133,2632.2,2631.8,3.90315718]
[1727353051858,0.8133,2632.2,2631.8,4.70315718]
[1727353053971,0.8133,2632.2,2631.9,3.79953]
[1727353054262,0.8133,2632.2,2632.0,0.06532259]
[1727353055436,3.79895,2632.4,2632.0,0.06532259]
[1727353055636,3.79909,2632.3,2631.8,4.6380525]
[1727353055839,3.79909,2632.3,2631.9,0.06540913]
[1727353056649,3.79912,2632.2,2631.9,0.06540913]
[1727353057997,4.59702,2632.4,2632.0,3.79937]
[1727353058291,3.79876,2632.5,2632.0,3.79937]
[1727353058450,7.59754,2632.5,2632.0,3.79937]
[1727353058787,3.79886,2632.4,2632.0,3.79937]
[1727353058994,3.79886,2632.4,2632.1,0.06523605]
[1727353059293,3.79902,2632.3,2632.1,0.06523605]
[1727353059666,3.79902,2632.3,2631.9,3.79953]
[1727353059872,3.79902,2632.3,2632.0,0.06532259]
[1727353060877,3.79875,2632.5,2632.0,0.06532259]
[1727353061193,4.57565,2632.8,2632.3,3.7989]
[1727353061357,3.79846,2632.7,2632.4,0.46286]
[1727353061551,3.79846,2632.7,2632.4,0.06283665]
[1727353061979,8.374,2632.8,2632.3,3.79895]
[1727353062288,3.79846,2632.7,2632.4,0.06283665]
[1727353062466,3.79846,2632.7,2632.3,0.462866]
[1727353062672,3.79846,2632.7,2632.4,0.06283665]
[1727353064082,3.79813,2632.9,2632.5,0.7884]
[1727353064394,3.7981,2632.9,2632.6,0.06266364]
[1727353064695,4.57933,2633.0,2632.6,0.06266364]
[1727353064999,7.09789,2633.1,2632.6,0.06266364]
[1727353065000,3.79789,2633.1,2632.6,0.06266364]
[1727353065157,3.79789,2633.1,2632.6,0.527629]
[1727353065495,3.79772,2633.2,2632.7,3.79831]
[1727353065711,3.79761,2633.3,2632.8,0.7709]
[1727353065855,3.79761,2633.3,2632.8,4.63116038]
[1727353066677,4.61063,2633.4,2632.9,3.79806]
[1727353066870,4.61063,2633.4,2633.0,0.06186741]
[1727353067476,3.79753,2633.3,2633.0,0.06186741]
[1727353067795,3.79753,2633.3,2632.8,5.58683518]
[1727353068305,3.79753,2633.3,2632.9,0.06195389]
[1727353069488,3.79753,2633.3,2632.9,3.86000389]
[1727353069686,3.79753,2633.3,2632.9,0.06195389]
[1727353073212,0.8132,2633.4,2632.9,0.06195389]
[1727353073409,3.79745,2633.4,2633.0,0.7799]
[1727353073628,7.59465,2633.5,2633.0,4.63964741]
[1727353073834,3.79732,2633.5,2633.0,4.63964741]
[1727353074008,3.79739,2633.4,2633.0,4.63964741]
[1727353074317,7.59463,2633.5,2633.0,4.63964741]
[1727353074739,3.79743,2633.4,2633.0,0.84176741]
[1727353074940,3.79743,2633.4,2633.0,4.63965741]
[1727353075247,3.79743,2633.4,2633.0,5.49101387]
[1727353076949,3.79724,2633.5,2633.0,5.49096387]
[1727353077248,3.79724,2633.5,2633.0,4.63960741]
[1727353077933,3.79711,2633.6,2633.1,3.79771]
[1727353078134,3.79696,2633.7,2633.3,3.79744]
[1727353078337,3.79709,2633.6,2633.2,1.21139849]
[1727353078518,3.79709,2633.6,2633.4,0.06086784]
[1727353078854,3.79709,2633.6,2633.2,0.7644]
[1727353078855,3.79709,2633.6,2633.5,0.06078139]
[1727353079058,3.68643365,2633.6,2633.2,4.56205]
[1727353079350,3.68643365,2633.6,2633.5,0.06071711]
[1727353079521,3.68643365,2633.6,2633.3,0.835976]
[1727353079721,3.68643365,2633.6,2633.5,0.06071711]
[1727353079925,3.68643365,2633.6,2633.4,0.0607607]
[1727353080119,3.68643365,2633.6,2633.5,0.06067426]
[1727353080713,3.68643365,2633.6,2633.3,0.835976]
[1727353080914,3.68643365,2633.6,2633.5,0.06065819]
[1727353081110,3.79683,2633.8,2633.5,0.8122]
[1727353081350,3.79683,2633.8,2633.5,0.87285819]
[1727353082322,3.79683,2633.8,2633.5,1.42347161]
[1727353082540,3.79666,2633.9,2633.5,1.42347161]
[1727353082724,3.79689,2633.8,2633.5,1.42347161]
[1727353082927,3.79666,2633.9,2633.5,1.36281342]
[1727353083126,7.59343,2633.9,2633.6,0.06056639]
[1727353083359,7.59343,2633.9,2633.5,1.36281342]
[1727353083360,3.79666,2633.9,2633.5,1.36281342]
[1727353083649,3.79666,2633.9,2633.6,0.06056639]
[1727353084115,3.79639,2634.1,2633.7,4.5861]
[1727353084332,0.8256,2634.9,2634.0,0.7893]
[1727353084529,0.8256,2634.9,2634.3,3.79599]
[1727353084530,3.79537,2634.8,2634.3,3.79599]
[1727353084778,3.79552,2634.7,2634.3,4.64174043]
[1727353084932,3.79552,2634.7,2634.4,0.0597091]
[1727353085536,3.79531,2634.9,2634.4,3.8555491]
[1727353085875,3.79551,2634.7,2634.5,1.24582995]
[1727353086168,3.79551,2634.7,2634.5,1.30523315]
[1727353086547,3.79535,2634.8,2634.5,1.30523315]
[1727353088331,3.8336125,2635.0,2634.5,1.30523315]
[1727353088689,3.79531,2634.9,2634.5,1.30523315]
[1727353088843,0.0384425,2635.0,2634.7,3.79549]
[1727353089050,0.0384425,2635.0,2634.8,3.79527]
[1727353089252,0.0384425,2635.0,2634.9,0.8132]
[1727353089440,0.0384425,2635.0,2634.9,0.87207576]
[1727353089770,0.0384425,2635.0,2634.9,1.71835934]
[1727353089929,0.0384425,2635.0,2634.9,5.51356934]
[1727353091181,0.0384425,2635.0,2634.9,1.71835934]
[1727353092270,0.0384425,2635.0,2634.9,0.87207576]
[1727353094057,0.0384425,2635.0,2634.9,0.05887576]
[1727353094238,0.0384425,2635.0,2634.7,4.56189]
[1727353094437,0.0384425,2635.0,2634.9,0.05790676]
[1727353094662,0.0384425,2635.0,2634.7,4.56189]
[1727353094978,0.0384425,2635.0,2634.9,0.05790676]
[1727353098296,0.0384425,2635.0,2634.7,0.7664]
[1727353098459,0.0384425,2635.0,2634.9,0.05790676]
[1727353098660,0.0384425,2635.0,2634.7,4.56181]
[1727353098971,0.0384425,2635.0,2634.9,0.05790676]
[1727353099168,0.0384425,2635.0,2634.8,0.05799311]
[1727353099376,0.0384425,2635.0,2634.9,0.05790676]
[1727353100376,0.0384425,2635.0,2634.6,3.79555]
[1727353100856,0.0384425,2635.0,2634.7,3.85355947]
[1727353101691,0.0384425,2635.0,2634.7,0.05807947]
[1727353101896,3.79526,2634.9,2634.7,0.05807947]
[1727353102093,4.57936,2634.9,2634.5,4.57627]
[1727353102294,4.57936,2634.9,2634.8,0.05799311]
[1727353102497,4.57936,2634.9,2634.5,4.57627]
[1727353102665,4.57936,2634.9,2634.8,0.05799311]
[1727353102992,0.7841,2634.9,2634.5,4.57627]
[1727353103215,0.0384425,2635.0,2634.8,0.05799311]
[1727353103501,0.0384425,2635.0,2634.9,0.05797633]
[1727353103704,0.0384425,2635.0,2634.6,3.79555]
[1727353103870,0.0384425,2635.0,2634.9,0.05797633]
[1727353104072,0.0384425,2635.0,2634.6,3.79555]
[1727353104615,0.0384425,2635.0,2634.7,0.05814904]
[1727353105508,3.8335225,2635.0,2634.7,0.05814904]
[1727353106716,3.8335225,2635.0,2634.4,4.55025]
[1727353106717,4.62659,2634.9,2634.4,4.55025]
[1727353106889,4.62659,2634.9,2634.8,0.05784329]
[1727353107087,4.62652,2634.9,2634.5,3.79577]
[1727353107303,4.62652,2634.9,2634.8,0.05784329]
[1727353107518,3.8335425,2635.0,2634.5,3.79577]
[1727353107813,3.8335425,2635.0,2634.8,0.05784329]
[1727353108019,0.0384425,2635.0,2634.5,3.79577]
[1727353108181,3.8335025,2635.0,2634.9,0.05779439]
[1727353108520,3.8335025,2635.0,2634.9,0.05599718]
[1727353108726,3.8335025,2635.0,2634.5,3.79577]
[1727353108878,3.8335025,2635.0,2634.9,0.05599718]
[1727353109216,3.79521,2634.9,2634.4,4.55025]
[1727353109401,2.80543191,2635.0,2634.4,4.55025]
[1727353109604,3.79528,2634.9,2634.4,4.55025]
[1727353109816,7.59058,2634.9,2634.4,4.55025]
[1727353110193,3.79551,2634.7,2634.4,0.7544]
[1727353110511,3.79551,2634.7,2634.2,0.8084]
[1727353110512,3.79579,2634.5,2634.2,0.8084]
[1727353110724,3.79579,2634.5,2634.1,3.79635]
[1727353112838,3.79599,2634.4,2634.0,0.8084]
[1727353113124,4.55747,2634.3,2633.8,4.61379]
[1727353113330,4.55747,2634.3,2633.8,4.6137]
[1727353113638,4.55747,2634.3,2633.8,6.37339438]
[1727353113792,3.79622,2634.2,2633.8,2.57669438]
[1727353114362,3.79643,2634.1,2633.6,4.61404]
[1727353114520,4.55748,2634.3,2633.7,3.79684]
[1727353114717,4.55748,2634.3,2633.8,3.79678]
[1727353115227,8.35365,2634.3,2633.8,3.79678]
[1727353115562,4.55745,2634.3,2633.8,3.79678]
[1727353115857,3.79633,2634.2,2633.7,3.79692]
[1727353116154,3.79633,2634.2,2633.7,4.81265138]
[1727353116449,0.7613,2634.3,2633.9,3.79655]
[1727353116658,3.79573,2634.6,2633.9,3.79655]
[1727353116659,3.79564,2634.6,2634.0,2.49947378]
[1727353116892,7.59136,2634.6,2634.1,3.79634]
[1727353117026,0.7525,2634.8,2634.0,6.29583378]
[1727353117027,3.79556,2634.7,2634.3,3.79607]
[1727353117225,0.7525,2634.8,2634.4,4.555066]
[1727353117424,3.8335925,2635.0,2634.5,3.79574]
[1727353117425,8.4306425,2635.0,2634.5,3.79574]
[1727353117662,4.6354925,2635.0,2634.5,3.79574]
[1727353117846,4.6354925,2635.0,2634.4,4.57174]
[1727353118048,3.79538,2634.8,2634.4,4.57181]
[1727353118259,3.79521,2634.9,2634.5,0.05675466]
[1727353120170,3.79545,2634.8,2634.5,0.05675466]
[1727353121136,3.79521,2634.9,2634.5,4.31539013]
[1727353121338,3.79537,2634.8,2634.5,0.51962013]
[1727353121545,3.79537,2634.8,2634.5,0.05675466]
[1727353121957,3.79521,2634.9,2634.5,0.05675466]
[1727353122665,7.59052,2634.9,2634.5,0.05675466]
[1727353122868,3.79521,2634.9,2634.5,0.05675466]
[1727353123173,0.0384425,2635.0,2634.5,4.31530313]
[1727353123373,0.0384425,2635.0,2634.7,7.59091]
[1727353123664,0.0384425,2635.0,2634.8,3.85176599]
[1727353124395,0.0384425,2635.0,2634.8,3.85170599]
[1727353124667,0.0384425,2635.0,2634.9,4.9914806]
[1727353124873,0.0384425,2635.0,2634.9,5.04729052]
[1727353127150,0.0384425,2635.0,2634.9,1.25208052]
[1727353128051,0.0384425,2635.0,2634.9,0.05580992]
[1727353128371,0.0384425,2635.0,2634.7,0.7684]
[1727353128672,3.8335025,2635.0,2634.8,0.05388501]
[1727353128963,0.0384425,2635.0,2634.6,3.79564]
[1727353129163,0.0384425,2635.0,2634.9,0.05382536]
[1727353129372,0.0384425,2635.0,2634.6,4.22150285]
[1727353129575,0.0384425,2635.0,2634.9,0.05382536]
[1727353129782,3.8335025,2635.0,2634.6,0.42586285]
[1727353129948,3.8335025,2635.0,2634.9,0.05382536]
[1727353130149,3.8335025,2635.0,2634.5,4.55418]
[1727353130338,3.8335025,2635.0,2634.9,0.05382536]
[1727353130539,0.0384425,2635.0,2634.6,3.79562]
[1727353130739,0.0384425,2635.0,2634.9,0.05382536]
[1727353130979,0.0384425,2635.0,2634.6,4.251038]
[1727353131179,0.0384425,2635.0,2634.9,0.05382536]
[1727353131349,0.0384425,2635.0,2634.6,4.251038]
[1727353131350,0.0384425,2635.0,2634.7,3.79549]
[1727353131549,0.0384425,2635.0,2634.9,0.05382536]
[1727353131751,0.0384425,2635.0,2634.8,3.84925172]
[1727353132079,0.0384425,2635.0,2634.9,0.05382536]
[1727353132274,0.0384425,2635.0,2634.9,3.84903536]
[1727353132655,0.0384425,2635.0,2634.9,4.65623536]
[1727353133266,0.0384425,2635.0,2634.9,5.5013919]
[1727353134176,0.0384425,2635.0,2634.9,1.7061819]
[1727353134375,0.0384425,2635.0,2634.9,0.8989819]
[1727353135601,0.0384425,2635.0,2634.9,4.6941919]
[1727353135894,0.0384425,2635.0,2634.9,0.8989819]
[1727353138286,0.0384425,2635.0,2634.9,0.05382536]
[1727353139047,0.0384425,2635.0,2634.9,3.84903536]
[1727353139252,0.0384425,2635.0,2634.9,0.05382536]
[1727353140791,0.0384425,2635.0,2634.9,3.84903536]
[1727353142105,0.0384425,2635.0,2634.9,3.92493391]
[1727353142291,0.0384425,2635.0,2634.9,4.65993536]
[1727353142602,0.0384425,2635.0,2634.9,5.75594338]
[1727353144186,0.0384425,2635.0,2634.9,7.42590627]
[1727353144360,0.0384425,2635.0,2634.9,7.50179467]
[1727353145299,0.0384425,2635.0,2634.9,7.42590627]
[1727353147021,0.0384425,2635.0,2634.9,5.68004957]
[1727353147170,0.0384425,2635.0,2634.9,3.84903536]
[1727353147502,0.0384425,2635.0,2634.9,0.05382536]
[1727353147716,0.0384425,2635.0,2634.8,5.5411967]
[1727353148001,0.0384425,2635.0,2634.9,3.84544815]
[1727353148215,0.0384425,2635.0,2634.9,4.48301864]
[1727353148582,0.0384425,2635.0,2634.9,0.68780864]